bitfinex/quotes_ETHUSD_20240717
["timestamp","ask_amount","ask_price","bid_price","bid_amount"]
[1721233282460,2.97719389,3411.6,3410.4,2.9322]
[1721233282768,0.07529439,3411.5,3410.3,2.93222]
[1721233282932,2.93136,3411.4,3410.4,2.9322]
[1721233283135,0.07526109,3411.3,3410.4,2.9322]
[1721233283440,0.02923115,3411.2,3410.2,2.93237]
[1721233283651,0.04602994,3411.3,3410.2,2.93237]
[1721233283822,0.02923115,3411.3,3410.5,2.9321]
[1721233284165,2.4701,3412.1,3410.7,2.93186]
[1721233284381,2.93128,3411.5,3410.3,2.93221]
[1721233284666,0.07539171,3411.4,3410.3,2.93221]
[1721233284963,2.93144,3411.3,3410.1,2.93244]
[1721233285184,5.43394526,3411.2,3410.0,2.93247]
[1721233285460,5.43394526,3411.2,3409.9,2.93256]
[1721233285461,2.93186,3410.9,3409.9,2.93256]
[1721233285664,2.50241526,3411.2,3409.7,2.93278]
[1721233285831,2.50241526,3411.2,3410.3,2.93228]
[1721233285832,0.04594665,3410.8,3410.3,2.93228]
[1721233286041,2.4563,3411.2,3410.4,0.05863854]
[1721233286238,0.04592399,3410.7,3410.5,2.93206]
[1721233286440,2.4563,3411.2,3410.5,2.93206]
[1721233286642,2.4563,3411.2,3410.6,2.93203]
[1721233286844,0.04601462,3411.1,3410.4,2.93215]
[1721233287868,0.04601462,3411.1,3410.5,2.93211]
[1721233288166,0.04601462,3411.1,3410.2,2.93237]
[1721233288369,0.04601462,3411.1,3410.1,2.93245]
[1721233288370,0.02923115,3411.0,3410.1,2.93245]
[1721233288522,0.04587328,3410.9,3410.0,2.93252]
[1721233289462,0.02923115,3410.8,3410.0,2.93252]
[1721233289666,0.02923115,3410.8,3409.8,2.93266]
[1721233289841,0.04589998,3410.7,3409.8,3.519213]
[1721233290170,2.4563,3411.2,3410.1,2.93245]
[1721233290484,0.04596661,3411.1,3410.8,2.93185]
[1721233290629,0.04596661,3411.1,3410.8,2.99048012]
[1721233290968,0.45960235,3412.1,3411.4,2.93129]
[1721233291281,2.3072,3412.5,3411.5,0.05861836]
[1721233291282,0.04635387,3412.0,3411.5,0.05861836]
[1721233291431,0.04635387,3412.0,3411.8,2.93099]
[1721233291775,2.3072,3412.5,3411.8,2.93099]
[1721233291934,0.04653439,3412.4,3411.8,2.93099]
[1721233292130,0.04653439,3412.4,3412.0,2.93076]
[1721233292333,2.3348,3413.1,3412.1,2.98929655]
[1721233292629,2.3348,3413.1,3412.0,2.93078]
[1721233292828,2.3348,3413.1,3412.6,2.9303]
[1721233293065,2.4111,3413.8,3412.6,2.9303]
[1721233293233,2.4111,3413.8,3412.4,2.93044]
[1721233293234,2.92946,3413.6,3412.4,2.93044]
[1721233293539,5.34039,3413.8,3412.2,2.93065]
[1721233293540,0.02923115,3413.5,3412.2,2.93065]
[1721233293746,2.92981,3413.2,3412.1,2.93073]
[1721233293941,0.02923115,3413.5,3412.3,2.93056]
[1721233293942,2.92968,3413.4,3412.3,2.93056]
[1721233294143,0.02923115,3413.3,3412.3,3.516696]
[1721233294349,2.95896115,3413.3,3412.3,3.516696]
[1721233294544,5.34043,3413.8,3412.5,2.93032]
[1721233294746,2.4111,3413.8,3412.6,2.9303]
[1721233295077,2.4111,3413.8,3413.0,2.92988]
[1721233295279,2.4111,3413.8,3413.1,2.92987]
[1721233295976,2.4111,3413.8,3412.9,2.93]
[1721233296287,2.4111,3413.8,3413.0,2.92991]
[1721233296868,2.4111,3413.8,3413.1,2.92988]
[1721233297346,5.4283,3414.5,3413.2,2.92977]
[1721233297545,2.92895,3414.2,3413.0,2.92991]
[1721233297863,2.95826115,3414.1,3413.0,2.92991]
[1721233298060,2.92913,3414.0,3412.8,2.93012]
[1721233298268,0.02923115,3413.9,3412.9,2.93005]
[1721233298933,2.95845115,3413.9,3412.9,2.93005]
[1721233299179,2.92929,3413.8,3412.5,2.93038]
[1721233299334,0.45933096,3414.6,3412.1,3.0]
[1721233299335,2.95867115,3413.7,3412.3,2.93049]
[1721233299536,2.92972,3413.3,3412.1,2.93071]
[1721233299744,2.95877115,3413.5,3412.4,2.93048]
[1721233299939,2.4782,3413.6,3412.1,0.293071]
[1721233300263,2.4782,3413.6,3412.8,2.93014]
[1721233300665,2.95885115,3413.5,3412.1,0.293071]
[1721233300837,2.92966,3413.4,3412.1,0.293071]
[1721233301040,0.02923115,3413.3,3412.3,2.93055]
[1721233301251,0.02923115,3413.3,3412.1,2.93074]
[1721233301252,2.92994,3413.1,3412.1,2.93073]
[1721233301539,0.0469419,3413.0,3412.2,0.05860734]
[1721233301744,0.0469419,3413.0,3412.8,2.93013]
[1721233301958,2.38373115,3414.3,3412.5,2.93035]
[1721233302170,0.04711747,3414.2,3412.6,0.293035]
[1721233302379,2.95826115,3414.1,3413.0,2.92992]
[1721233302587,0.04706033,3414.0,3413.1,2.92987]
[1721233303087,0.07629148,3414.0,3413.0,2.92992]
[1721233303414,0.07629148,3414.0,3413.1,2.92987]
[1721233303687,0.04706033,3414.0,3413.0,2.92992]
[1721233303853,0.04706033,3414.0,3412.1,6.09]
[1721233303854,0.04706033,3414.0,3413.1,0.43347714]
[1721233304049,0.04706033,3414.0,3412.4,3.09]
[1721233304285,2.3545,3414.3,3413.6,2.92944]
[1721233304452,0.02923115,3414.2,3413.4,2.92961]
[1721233304656,0.07619309,3414.2,3413.2,2.92973]
[1721233304877,3.00514309,3414.2,3413.0,2.92994]
[1721233305066,0.02923115,3414.2,3413.1,2.92988]
[1721233306758,0.04695953,3413.8,3412.7,2.93021]
[1721233306953,0.04695953,3413.8,3412.8,2.93013]
[1721233307308,0.04695953,3413.8,3412.5,3.0]
[1721233307309,2.95860115,3413.7,3412.7,2.9302]
[1721233307668,0.04696566,3413.6,3412.8,2.93014]
[1721233308338,2.95853115,3413.8,3412.8,3.816178]
[1721233308482,0.04687891,3413.5,3412.8,0.886038]
[1721233308690,0.04687891,3413.5,3413.1,2.92983]
[1721233308866,2.92915,3414.0,3412.9,2.92999]
[1721233309063,0.0468204,3413.4,3412.9,2.92999]
[1721233309265,2.92944,3413.7,3412.8,0.886038]
[1721233309504,0.04686962,3413.3,3412.5,3.0]
[1721233309800,0.02923115,3413.9,3412.8,2.93013]
[1721233309801,0.04679909,3413.2,3412.8,2.93013]
[1721233310010,2.92937,3413.7,3412.8,2.93013]
[1721233310159,0.04678073,3413.1,3412.2,3.0]
[1721233310360,2.92974,3413.3,3412.3,2.93055]
[1721233310560,0.04682996,3413.0,3412.4,2.93047]
[1721233310797,0.02923115,3413.4,3412.4,2.93047]
[1721233310988,0.04680037,3412.9,3412.4,2.93047]
[1721233311170,5.315,3413.2,3412.0,2.93076]
[1721233311375,5.315,3413.2,3412.2,2.93066]
[1721233311583,5.315,3413.2,3412.0,0.593076]
[1721233311584,2.93006,3412.9,3412.0,2.93082]
[1721233312100,0.0467076,3412.8,3412.4,2.93046]
[1721233312524,5.30022,3413.7,3412.6,2.93025]
[1721233312814,5.30022,3413.7,3412.5,2.93034]
[1721233312815,2.97633413,3413.6,3412.5,2.93034]
[1721233312976,2.97633413,3413.6,3412.6,2.93026]
[1721233313175,2.92964,3413.4,3412.3,2.93052]
[1721233313420,0.02923115,3413.3,3412.1,2.93068]
[1721233313581,0.02923115,3413.3,3412.1,3.223748]
[1721233313582,2.92982,3413.2,3412.1,3.223748]
[1721233313912,2.92964,3413.4,3412.3,2.93051]
[1721233314112,2.92964,3413.4,3412.3,5.86101]
[1721233314327,0.04680627,3413.3,3412.3,5.86101]
[1721233314613,2.92981,3413.2,3412.1,3.223738]
[1721233314817,0.02923115,3413.1,3412.2,2.93065]
[1721233314979,2.95904115,3413.2,3412.3,2.93057]
[1721233315174,0.04680601,3413.0,3412.3,2.93057]
[1721233315481,2.92981,3413.2,3412.3,3.5460008]
[1721233315711,0.04678338,3412.9,3412.3,3.5460008]
[1721233315889,2.92951,3413.6,3412.5,2.93039]
[1721233316229,5.30018,3413.7,3412.7,2.93023]
[1721233316380,0.04692684,3413.5,3412.6,2.93025]
[1721233316579,2.95880115,3413.5,3412.6,2.93025]
[1721233316826,0.04690422,3413.4,3412.6,2.93025]
[1721233316990,0.04690422,3413.4,3412.4,2.93042]
[1721233317187,0.02923115,3413.3,3412.4,2.93042]
[1721233317374,0.07611275,3413.3,3412.4,2.93042]
[1721233317580,2.9765916,3413.3,3412.4,2.93042]
[1721233317994,2.95904115,3413.2,3412.2,2.93065]
[1721233318692,0.04690388,3413.1,3412.3,2.93054]
[1721233319093,2.97679388,3413.1,3412.1,2.93067]
[1721233319315,2.9302,3412.8,3411.7,2.93101]
[1721233319623,2.9302,3412.8,3411.9,2.93089]
[1721233319827,2.95943115,3412.8,3412.0,3.0]
[1721233320325,2.9301,3412.9,3411.3,3.366]
[1721233320326,2.4194,3412.5,3411.5,37.93123]
[1721233320538,0.02923115,3412.4,3410.9,2.93172]
[1721233320872,0.02923115,3412.4,3410.0,0.61176817]
[1721233320873,2.93101,3411.8,3410.7,2.93191]
[1721233321146,2.93061,3412.3,3410.7,2.93191]
[1721233321147,2.96039115,3411.7,3410.8,2.93184]
[1721233321343,0.0468236,3411.7,3410.9,2.93177]
[1721233321523,0.55,3412.4,3410.7,3.30587286]
[1721233321524,2.4194,3412.5,3410.7,0.37396286]
[1721233321849,2.4194,3412.5,3411.5,2.93124]
[1721233321850,0.04515428,3412.4,3411.5,2.93124]
[1721233321992,0.04515428,3412.4,3411.1,35.0]
[1721233321993,2.93091,3412.0,3411.1,35.0]
[1721233322189,2.93091,3412.0,3410.7,0.37396286]
[1721233322190,0.02923115,3411.9,3410.7,0.37396286]
[1721233322558,2.2679,3411.5,3410.5,2.93212]
[1721233322747,5.22841115,3411.5,3410.6,37.93203]
[1721233322905,0.0448142,3411.4,3410.6,37.93203]
[1721233323110,2.2679,3411.5,3410.8,2.93185]
[1721233323416,2.2679,3411.5,3410.6,40.86396]
[1721233323602,2.2679,3411.5,3410.2,2.93235]
[1721233323603,2.29713115,3411.5,3410.2,2.93235]
[1721233323811,2.93199,3410.7,3409.7,2.9328]
[1721233323992,0.07385209,3410.6,3409.4,2.93303]
[1721233324201,0.07385209,3410.6,3408.5,2.4368]
[1721233324202,2.2525,3410.5,3409.5,35.0]
[1721233324408,2.2525,3410.5,3409.2,2.93322]
[1721233324409,2.93243,3410.2,3409.2,2.93322]
[1721233324606,0.02923115,3410.4,3409.3,2.93314]
[1721233324607,0.02923115,3410.1,3409.3,2.93314]
[1721233324833,2.93226,3410.4,3409.3,2.93314]
[1721233324834,0.04431535,3410.0,3409.3,2.93314]
[1721233325036,2.2525,3410.5,3409.4,0.05865841]
[1721233325256,0.04455463,3410.4,3409.5,2.93296]
[1721233325393,2.97675463,3410.4,3409.5,2.93296]
[1721233325589,0.04455463,3410.4,3409.5,2.93296]
[1721233325789,0.04455463,3410.4,3409.5,3.38851005]
[1721233326102,0.04455463,3410.4,3410.0,2.93254]
[1721233326296,2.2525,3410.5,3410.1,2.93246]
[1721233326497,0.04123832,3410.3,3410.1,2.93246]
[1721233326697,2.2815,3411.2,3410.4,2.93215]
[1721233326937,3.0,3411.6,3411.0,2.93167]
[1721233327168,0.04141198,3411.1,3411.0,2.93167]
[1721233327368,2.2815,3411.8,3411.1,2.93159]
[1721233327728,2.2815,3411.8,3411.3,2.93142]
[1721233327931,2.4463,3412.5,3411.6,2.93116]
[1721233328287,0.04054408,3412.4,3412.0,2.93077]
[1721233328778,0.04054408,3412.4,3412.1,35.0]
[1721233329190,2.4463,3412.5,3412.1,35.0]
[1721233329330,2.4463,3412.5,3411.3,2.93137]
[1721233329331,2.4463,3412.5,3411.5,2.9312]
[1721233329533,0.02923115,3412.4,3410.6,3.366]
[1721233329734,2.93081,3412.1,3411.0,2.93169]
[1721233329982,2.93068,3412.2,3411.1,2.93154]
[1721233330143,2.93054,3412.4,3411.3,2.93143]
[1721233330344,2.93054,3412.4,3410.7,3.0]
[1721233330345,0.02923115,3412.3,3410.7,5.93191]
[1721233330540,2.93058,3412.3,3411.3,2.9314]
[1721233330745,3.0404753,3412.2,3411.3,2.9314]
[1721233330969,0.02923115,3412.1,3411.3,2.9314]
[1721233331147,3.0,3412.2,3411.6,2.93111]
[1721233331352,3.0,3412.2,3411.5,2.93124]
[1721233331561,2.4463,3412.5,3411.5,2.93124]
[1721233331742,0.04045266,3412.1,3412.0,2.93083]
[1721233331943,0.86980043,3413.6,3412.1,2.93068]
[1721233331944,2.3626,3413.3,3412.1,2.93068]
[1721233332192,2.3626,3413.3,3412.3,2.93056]
[1721233332338,0.04065368,3413.2,3412.3,2.93056]
[1721233332675,0.04065368,3413.2,3412.4,2.93047]
[1721233333237,5.29233,3413.3,3412.2,2.93061]
[1721233333485,3.06985666,3413.2,3412.2,2.93061]
[1721233333779,5.99965666,3413.2,3412.2,2.93061]
[1721233333991,5.99965666,3413.2,3412.0,2.93081]
[1721233333992,2.92996,3413.1,3412.0,2.93081]
[1721233334158,2.9303,3412.7,3411.7,2.93108]
[1721233334378,2.9303,3412.7,3411.5,2.93125]
[1721233334379,0.02923115,3412.6,3411.6,2.93112]
[1721233334560,0.02923115,3412.6,3411.1,5.93155]
[1721233334561,3.06972514,3412.6,3411.4,2.93129]
[1721233334849,3.06972514,3412.6,3410.8,2.93178]
[1721233334850,0.04047729,3412.5,3411.6,2.93116]
[1721233335061,0.02923115,3412.4,3411.6,3.517416]
[1721233335266,3.0,3412.8,3411.9,2.93091]
[1721233335584,3.0,3412.8,3411.7,2.93102]
[1721233335585,0.02923115,3412.7,3411.7,2.93102]
[1721233335739,0.02923115,3412.7,3411.8,2.93098]
[1721233335941,0.04067552,3412.6,3411.8,2.93098]
[1721233336236,0.04067552,3412.6,3411.7,2.93102]
[1721233336237,0.04067552,3412.6,3411.9,2.93091]
[1721233336583,3.0,3412.9,3411.6,0.586256]
[1721233336584,2.95940115,3412.8,3411.8,2.93097]
[1721233336791,3.0,3412.9,3411.8,2.93097]
[1721233336792,0.04065289,3412.5,3412.1,2.93067]
[1721233336996,0.04069815,3412.7,3412.1,2.93067]
[1721233337142,2.3626,3413.3,3412.4,2.93048]
[1721233337652,0.03949449,3413.2,3412.4,2.93048]
[1721233337970,0.03949449,3413.2,3412.6,2.9303]
[1721233338137,0.03949449,3413.2,3412.9,2.93004]
[1721233338339,2.92928,3413.8,3412.7,3.22906044]
[1721233338562,2.95860115,3413.7,3412.7,37.93017]
[1721233338759,2.9968154,3413.7,3412.7,37.93017]
[1721233338989,2.95860115,3413.7,3412.7,37.93017]
[1721233339273,2.95860115,3413.7,3412.8,2.93013]
[1721233339481,0.03819163,3413.6,3412.8,2.93013]
[1721233339689,2.95878115,3413.5,3412.2,37.93058]
[1721233339898,2.95878115,3413.5,3412.2,35.0]
[1721233340098,2.92979,3413.3,3412.2,37.93065]
[1721233340299,3.0,3413.4,3412.2,37.93065]
[1721233340300,2.95903115,3413.2,3412.2,37.93065]
[1721233340465,2.9971682,3413.2,3412.3,2.93056]
[1721233340785,0.0673682,3413.2,3412.3,5.84792562]
[1721233341105,0.0673682,3413.2,3411.6,6.517386]
[1721233341106,0.03813705,3413.2,3412.6,2.93031]
[1721233341255,0.03813705,3413.2,3412.7,2.9302]
[1721233341599,2.92946,3413.6,3412.7,2.93022]
[1721233341783,3.03821682,3413.5,3412.7,2.93022]
[1721233341982,3.06744797,3413.5,3412.5,37.93035]
[1721233342370,3.03821682,3413.5,3412.5,37.93035]
[1721233342582,3.03821682,3413.5,3412.6,2.93029]
[1721233343176,3.03821682,3413.5,3412.7,2.93022]
[1721233343408,0.03821682,3413.5,3412.7,2.93022]
[1721233343576,3.0,3413.7,3412.7,2.93022]
[1721233343782,0.06740304,3413.6,3411.6,3.586256]
[1721233343995,2.2641,3412.5,3411.5,2.93118]
[1721233344206,2.2641,3412.5,3411.4,2.93134]
[1721233344207,0.06731689,3412.4,3411.4,2.93134]
[1721233344365,2.93073,3412.2,3410.8,2.93185]
[1721233344560,2.93073,3412.2,3410.8,3.225035]
[1721233344561,2.9309,3412.0,3410.8,3.225035]
[1721233344875,0.55,3412.4,3410.5,2.93211]
[1721233344876,2.93125,3411.6,3410.5,2.93211]
[1721233345092,2.931,3411.8,3409.8,2.93265]
[1721233345093,0.03771556,3411.5,3410.6,2.93202]
[1721233345398,5.30837,3411.4,3410.3,2.93229]
[1721233345600,5.30837,3411.4,3410.4,2.93219]
[1721233345601,0.06654807,3411.3,3410.4,2.93219]
[1721233345762,0.06654807,3411.3,3410.5,0.293219]
[1721233347006,0.03731692,3411.3,3410.5,3.225319]
[1721233347176,2.377,3411.4,3410.5,3.225319]
[1721233347177,2.377,3411.4,3410.6,2.93201]
[1721233347374,2.377,3411.4,3410.5,3.225319]
[1721233347375,3.0,3411.7,3410.7,2.93194]
[1721233347571,3.0,3411.7,3410.8,2.93185]
[1721233347789,0.03729071,3411.6,3410.8,2.93185]
[1721233348001,0.03729071,3411.6,3410.9,2.93177]
[1721233348223,2.2719,3412.1,3411.2,2.93146]
[1721233348450,0.0665821,3412.0,3410.8,0.6157169]
[1721233348703,0.0665821,3412.0,3410.5,0.293219]
[1721233348704,2.93106,3411.8,3410.6,2.93198]
[1721233348875,2.96038115,3411.7,3410.7,3.3225199]
[1721233349206,2.93097,3411.9,3410.7,6.2544599]
[1721233349388,0.066676,3411.8,3410.7,3.3225199]
[1721233349592,2.93135,3411.4,3410.6,3.0]
[1721233349818,2.93123,3411.6,3410.6,5.93202]
[1721233349977,0.0373889,3411.5,3410.6,5.93202]
[1721233350164,2.9686589,3411.5,3410.6,5.93202]
[1721233350366,0.0373889,3411.5,3410.6,5.93202]
[1721233350673,2.2719,3412.1,3411.2,2.9315]
[1721233350892,2.2719,3412.1,3410.7,0.9157429]
[1721233350893,0.03747614,3412.0,3410.8,2.93184]
[1721233351092,2.93102,3411.8,3410.9,2.93176]
[1721233351397,2.9312,3411.6,3410.7,3.8476829]
[1721233351599,0.0373989,3411.5,3410.7,3.8476829]
[1721233351802,2.9686589,3411.5,3410.7,3.8476829]
[1721233351967,2.93143,3411.3,3410.3,2.93229]
[1721233352162,0.03727678,3411.2,3410.3,2.93229]
[1721233352362,2.93143,3411.3,3410.4,2.9322]
[1721233352966,0.02923115,3411.2,3410.4,2.9322]
[1721233353168,0.03736217,3411.1,3410.4,2.9322]
[1721233353480,0.03736217,3411.1,3410.4,3.38022103]
[1721233353684,2.50693115,3411.0,3409.7,2.93279]
[1721233353881,2.93204,3410.6,3409.3,2.93311]
[1721233354105,0.066413,3410.5,3409.3,2.93311]
[1721233354307,0.066413,3410.5,3408.6,2.93367]
[1721233354308,2.93246,3410.1,3409.1,2.93331]
[1721233354511,2.93246,3410.1,3409.2,5.85058562]
[1721233354715,2.93246,3410.1,3409.2,2.91736562]
[1721233354914,2.93246,3410.1,3409.1,2.93331]
[1721233355125,0.03700853,3410.0,3409.1,2.93331]
[1721233355482,2.93246,3410.1,3409.2,2.93322]
[1721233355683,2.93246,3410.1,3409.1,2.93331]
[1721233355684,2.93229,3410.3,3409.3,2.93315]
[1721233355881,0.03663485,3410.2,3409.2,2.93317]
[1721233356198,2.96167115,3410.2,3409.3,3.226457]
[1721233356398,2.93249,3410.1,3409.3,0.293317]
[1721233356601,0.02923115,3410.0,3409.3,0.293317]
[1721233357132,2.9323,3410.3,3409.3,3.226457]
[1721233357283,2.93235,3410.3,3409.3,3.226457]
[1721233357488,2.96896681,3410.2,3409.4,0.6159727]
[1721233357790,2.99819796,3410.2,3409.3,0.293317]
[1721233357990,2.96161115,3410.2,3409.3,3.226457]
[1721233358184,2.9321,3410.6,3409.3,0.293317]
[1721233358411,0.03667883,3410.5,3409.6,2.93287]
[1721233358658,0.03667883,3410.5,3408.8,3.0]
[1721233358659,5.40941,3411.0,3409.7,2.93279]
[1721233358825,0.03685032,3410.9,3409.9,2.93261]
[1721233359021,0.03685032,3410.9,3410.0,2.93249]
[1721233359250,2.93188,3410.8,3410.0,0.58651]
[1721233359433,2.93213,3410.5,3409.5,2.93294]
[1721233359661,0.0366553,3410.4,3409.6,5.93288]
[1721233359960,0.02923115,3410.3,3409.6,3.0]
[1721233360151,0.02923115,3410.3,3409.4,5.93304]
[1721233360349,2.96157115,3410.3,3409.4,5.93304]
[1721233360548,0.03666819,3410.2,3409.5,0.593304]
[1721233360739,0.03666819,3410.2,3409.8,2.93265]
[1721233361062,0.03666819,3410.2,3409.5,0.593304]
[1721233361063,2.4777,3411.0,3410.0,2.93253]
[1721233361225,0.03678231,3410.9,3410.0,2.93248]
[1721233361729,0.03678231,3410.9,3410.2,2.93237]
[1721233362153,0.03678231,3410.9,3410.2,0.586485]
[1721233362345,0.03678231,3410.9,3409.5,6.616244]
[1721233362346,0.03678231,3410.9,3410.6,2.93202]
[1721233362550,5.26251115,3411.6,3410.7,2.93194]
[1721233362746,0.0367496,3410.8,3410.7,2.93194]
[1721233362947,2.33133115,3411.6,3410.7,2.93194]
[1721233363369,2.33133115,3411.6,3410.8,2.93185]
[1721233363370,0.03698508,3411.5,3410.8,2.93185]
[1721233363528,0.03698508,3411.5,3410.8,3.518229]
[1721233363727,0.03698508,3411.5,3410.9,2.93173]
[1721233363933,0.03698508,3411.5,3411.0,2.93167]
[1721233364372,0.03698508,3411.5,3411.1,2.93159]
[1721233365109,0.03698162,3411.4,3410.9,2.93176]
[1721233365317,0.03698162,3411.4,3410.5,2.93205]
[1721233365472,2.93127,3411.5,3410.3,2.93225]
[1721233365675,0.06623678,3411.4,3410.5,2.93204]
[1721233365872,2.9314,3411.4,3410.2,2.93232]
[1721233366067,2.9314,3411.4,3410.1,2.93242]
[1721233366068,0.03713041,3411.3,3410.1,2.93242]
[1721233366269,0.03713041,3411.3,3409.3,5.6874]
[1721233366270,2.49873115,3411.2,3409.3,5.6874]
[1721233366490,2.49873115,3411.2,3407.1,12.5437]
[1721233366491,2.93201,3410.7,3409.6,2.93283]
[1721233366695,0.0660949,3410.6,3409.6,2.93283]
[1721233366868,0.0660949,3410.6,3409.7,2.93279]
[1721233366869,2.9981249,3410.6,3409.7,2.93279]
[1721233367067,2.9981249,3410.6,3409.8,2.93268]
[1721233367293,2.96889375,3410.6,3409.8,3.519231]
[1721233367503,2.96889375,3410.6,3409.8,0.586551]
[1721233367707,2.96137115,3410.5,3409.8,0.586551]
[1721233367907,0.03686375,3410.6,3409.8,0.586551]
[1721233368092,0.03677875,3410.4,3409.8,0.586551]
[1721233368303,2.93171,3411.0,3409.3,3.0]
[1721233368304,2.93171,3411.0,3409.9,0.60035207]
[1721233368498,0.03665901,3410.3,3410.0,2.93252]
[1721233368699,2.93192,3410.8,3409.8,2.93272]
[1721233368873,0.03674268,3410.7,3409.8,2.93272]
[1721233369077,2.9326,3410.0,3409.1,2.93331]
[1721233369275,0.03658532,3409.9,3408.6,2.93371]
[1721233369476,2.96200115,3409.8,3408.9,2.93349]
[1721233369771,0.06585519,3409.7,3408.8,2.93353]
[1721233369997,0.06585519,3409.7,3408.7,0.293371]
[1721233370194,0.06585519,3409.7,3408.9,2.93348]
[1721233370404,2.99866519,3409.7,3408.9,2.93348]
[1721233370568,2.93291,3409.6,3408.6,2.93371]
[1721233370772,0.02923115,3409.5,3408.7,2.93366]
[1721233370972,0.02923115,3409.8,3408.7,2.93366]
[1721233371175,0.02923115,3409.8,3408.9,2.93344]
[1721233371373,0.0363855,3409.7,3408.8,0.293366]
[1721233371630,0.0363855,3409.7,3408.9,2.93344]
[1721233371973,0.06561665,3409.7,3408.8,0.293366]
[1721233372198,2.99843665,3409.7,3408.8,0.293366]
[1721233372719,2.99843665,3409.7,3408.8,3.226886]
[1721233373401,0.06561665,3409.7,3408.9,2.93347]
[1721233373588,0.06561665,3409.7,3408.9,3.5495056]
[1721233373589,0.0363855,3409.7,3408.9,3.5495056]
[1721233373791,2.9692055,3409.7,3408.9,0.6160356]
[1721233374278,0.02923115,3409.6,3408.4,2.93388]
[1721233374481,0.02923115,3409.6,3408.2,3.366]
[1721233374482,0.03623117,3409.5,3408.2,3.366]
[1721233374691,2.93282,3409.7,3408.8,2.93352]
[1721233374994,5.42046,3409.5,3408.5,2.93382]
[1721233375189,2.9333,3409.2,3408.3,2.93396]
[1721233375684,0.03597738,3409.1,3408.3,2.93396]
[1721233376036,2.99853853,3409.1,3408.1,2.93411]
[1721233376427,2.99853853,3409.1,3407.9,2.93428]
[1721233376731,2.99853853,3409.1,3407.9,2.93427]
[1721233376883,0.02923115,3409.0,3408.1,2.9341]
[1721233377078,0.03588125,3408.9,3408.0,0.293427]
[1721233377352,2.96937125,3408.9,3408.0,2.93421]
[1721233377493,0.02923115,3408.8,3408.0,2.93421]
[1721233377692,0.03583586,3408.7,3408.1,2.93416]
[1721233377894,2.93318,3409.3,3408.2,2.93403]
[1721233378101,0.03591544,3409.2,3408.4,2.9339]
[1721233378301,0.03591544,3409.2,3408.3,2.99266484]
[1721233378302,0.03591544,3409.2,3408.5,0.59265648]
[1721233378503,2.4874,3409.5,3408.0,2.93426]
[1721233378704,2.93341,3409.0,3408.0,2.93426]
[1721233378904,2.93367,3408.7,3407.8,2.93441]
[1721233379228,6.02295,3409.6,3407.3,2.93485]
[1721233379229,2.93419,3408.1,3407.3,2.93485]
[1721233379445,0.03579432,3408.0,3407.2,2.93495]
[1721233379731,0.03579432,3408.0,3407.3,3.228355]
[1721233380294,0.03579432,3408.0,3407.4,2.93478]
[1721233380533,2.96333115,3408.2,3407.3,3.228365]
[1721233381128,0.03563068,3408.1,3407.3,3.228365]
[1721233381350,2.96983068,3408.1,3407.1,2.93501]
[1721233381500,0.02923115,3408.0,3407.1,2.93501]
[1721233381840,0.03558526,3407.9,3407.5,2.93462]
[1721233382040,2.3435,3408.5,3407.5,2.93462]
[1721233382041,2.96316115,3408.4,3407.5,2.93462]
[1721233382198,0.03552999,3408.3,3407.5,2.93462]
[1721233382406,0.03552999,3408.3,3407.3,2.93484]
[1721233382696,0.02923115,3408.2,3407.4,2.93478]
[1721233382908,0.03586174,3408.1,3408.0,2.93427]
[1721233383261,0.03586174,3408.1,3406.6,3.79863495]
[1721233383598,2.93424,3408.1,3407.0,2.93511]
[1721233383751,2.3466,3408.6,3406.8,2.93524]
[1721233383752,2.93452,3407.8,3406.8,2.93524]
[1721233383902,2.93436,3407.9,3406.6,2.93544]
[1721233383903,2.96376115,3407.7,3406.6,2.93544]
[1721233384110,2.3466,3407.5,3406.6,2.93544]
[1721233384421,0.06393915,3407.4,3406.6,3.522545]
[1721233384623,0.06393915,3407.4,3406.7,2.93538]
[1721233384816,0.034708,3407.4,3406.8,2.9353]
[1721233385741,0.06393915,3407.4,3406.7,2.93538]
[1721233385954,0.034708,3407.4,3406.8,2.93528]
[1721233386238,0.034708,3407.4,3407.1,2.93499]
[1721233386401,2.93464,3407.6,3406.2,2.93578]
[1721233386611,0.06364837,3407.5,3406.5,2.93552]
[1721233386919,0.03441722,3407.5,3407.1,2.93502]
[1721233387344,2.96350115,3408.0,3407.1,2.93502]
[1721233387514,5.39205,3408.1,3407.1,2.93502]
[1721233387515,0.03440272,3407.4,3407.1,2.93502]
[1721233387848,2.4578,3408.1,3407.1,2.93502]
[1721233387849,2.4578,3408.1,3407.3,2.93486]
[1721233388071,2.4578,3408.1,3406.1,6.456]
[1721233388072,2.4578,3408.1,3405.8,5.3508]
[1721233388204,2.4578,3408.1,3406.8,2.93523]
[1721233388205,2.93451,3407.8,3406.8,2.93523]
[1721233388409,0.02923115,3407.7,3406.9,2.93514]
[1721233388962,0.02923115,3407.7,3406.8,2.93523]
[1721233389139,2.93475,3407.5,3406.3,2.93569]
[1721233389457,0.02923115,3407.4,3406.6,2.93547]
[1721233389751,0.02923115,3407.4,3406.5,2.93555]
[1721233390052,2.93446,3407.8,3406.7,2.93537]
[1721233390212,0.02923115,3407.7,3406.8,2.93524]
[1721233390417,2.96376115,3407.7,3406.6,2.93543]
[1721233390636,2.93464,3407.6,3406.7,2.93538]
[1721233390837,0.06366123,3407.5,3406.7,2.93538]
[1721233391151,2.93496,3407.2,3406.2,5.87152]
[1721233391319,2.41263115,3407.1,3406.2,2.93577]
[1721233391519,5.34768115,3407.1,3406.0,2.93592]
[1721233391728,5.34768115,3407.1,3405.2,5.20735]
[1721233391729,2.93545,3406.7,3405.5,2.93638]
[1721233391930,0.06354072,3407.0,3405.5,2.93638]
[1721233391931,2.93557,3406.5,3405.5,3.230518]
[1721233392258,2.3834,3406.0,3405.2,0.005]